fUSD/lending_fUSD_20260128
["ID","MTS","AMOUNT","RATE_DAILY","PERIOD"]
[403880337,1769622632053,-1000.0,0.00017793,2]
[403880338,1769622632062,-166.37398015,0.00017892,2]
[403880339,1769622632073,-333.62601985,0.00017892,2]
[403880340,1769622632082,-500.0,0.00017892,2]
[403880341,1769622632090,-500.0,0.00017892,2]
[403880342,1769622632100,-537.9533771,0.00017892,2]
[403880343,1769622632109,-500.0,0.00017892,2]
[403880344,1769622632118,-500.0,0.00017892,2]
[403880345,1769622632127,-500.0,0.00017892,2]
[403880346,1769622632136,-184.0,0.00017959,2]
[403880347,1769622632145,-168.0,0.00017972,2]
[403880348,1769622632155,-500.0,0.00017999,2]
[403880349,1769622632163,-500.0,0.00017999,2]
[403880350,1769622632173,-500.0,0.00017999,2]
[403880351,1769622632182,-500.0,0.00017999,2]
[403880352,1769622632191,-500.0,0.00017999,2]
[403880353,1769622632201,-163.67307213,0.00017999,2]
[403880354,1769622632210,-500.0,0.00017999,2]
[403880355,1769622632220,-500.0,0.00017999,2]
[403880356,1769622632229,-551.95368049,0.00017999,2]
[403880357,1769622632239,-504.38275223,0.00017999,2]
[403880358,1769622632249,-506.97882,0.00018,2]
[403880359,1769622632259,-168.0,0.00018236,2]
[403880360,1769622632268,-168.0,0.00018291,2]
[403880361,1769622632277,-168.0,0.00018392,2]
[403880362,1769622632287,-168.0,0.00018763,2]
[403880363,1769622632296,-224.32,0.000188,2]
[403880364,1769622632305,-168.0,0.00019059,2]
[403880365,1769622632315,-168.0,0.00019516,2]
[403880366,1769622632324,-168.0,0.00019566,2]
[403880367,1769622632334,-225.43,0.000211,7]
[403880368,1769622632343,-242.6273255,0.0002259,2]
[403880369,1769622632352,-500.0,0.00022973,2]
[403880370,1769622632361,-1000.0,0.00030558,2]
[403880371,1769622632370,-3196.7,0.00030885,120]
[403880372,1769622632379,-1000.0,0.00031704,2]
[403880373,1769622632388,-167.42,0.00032501,120]
[403880374,1769622632397,-1000.0,0.0003285,2]
[403880375,1769622632407,-1000.0,0.00033996,2]
[403880376,1769622632415,-200.0,0.00034169,2]
[403880377,1769622632425,-1000.0,0.00035142,2]
[403880378,1769622632434,-623.58267598,0.00035616,7]
[403880379,1769622632443,-1517.984,0.00035676,42]
[403880380,1769622632453,-167.42,0.00037918,120]
[403880381,1769622632463,-300.0,0.00038231,10]
[403880382,1769622632472,-184.0,0.00038254,2]
[403880383,1769622632481,-268.55510278,0.00039065,28]
[403880384,1769622632490,-401.74237253,0.00039065,28]
[403880385,1769622632500,-543.5694,0.00039065,28]
[403880386,1769622632509,-1852.42,0.00039368,2]
[403880387,1769622632518,-533.21,0.00041096,120]
[403880388,1769622632527,-184.0,0.00041254,2]
[403880389,1769622632536,-500.0,0.00041905,60]
[403880390,1769622632545,-1092.4480569,0.00042,120]
[403880391,1769622632554,-1480.12871606,0.00042208,7]
[403880392,1769622632564,-1076.99786911,0.00042212,4]
[403880393,1769622632573,-1440.0,0.00042213,30]
[403880394,1769622632583,-779.12169,0.000423,20]
[403880395,1769622632592,-1000.0,0.00042571,30]
[403880396,1769622632601,-1440.0,0.00042649,30]
[403880397,1769622632611,-1000.0,0.00042756,4]
[403880398,1769622632619,-217.40193971,0.000428,15]
[403880399,1769622632630,-339.72880242,0.000428,28]
[403880400,1769622632647,-1000.0,0.00042845,30]
[403880401,1769622632657,-412.26406946,0.00042874,19]
[403880402,1769622632667,-339.7288024,0.00042887,28]
[403880403,1769622632676,-165.31,0.0004289,2]
[403880404,1769622632686,-165.31,0.0004289,2]
[403880405,1769622632703,-200.0,0.00042897,120]
[403880406,1769622632713,-151.0,0.00042897,120]
[403880407,1769622632722,-5652.85806195,0.000429,3]
[403880408,1769622632737,-2773.96661148,0.000429,3]
[403880409,1769622632752,-282.33286881,0.000429,3]
[403880410,1769622632764,-1794.47750331,0.000429,3]
[403880411,1769622632776,-6374.08985714,0.000429,3]
[403880412,1769622632787,-477.97880591,0.000429,3]
[403880413,1769622632798,-824.83,0.000429,3]
[403880414,1769622632814,-1060.92728506,0.000429,3]
[403880415,1769622632825,-344.81,0.000429,3]
[403880416,1769622632837,-1342.64096061,0.000429,3]
[403880417,1769622632849,-2010.45162671,0.000429,3]
[403880418,1769622636390,-1000.0,0.00032594,2]
[403880419,1769622636399,-964.28898225,0.000428,15]
[403880420,1769622636409,-431.98673084,0.00042899,31]
[403880421,1769622636418,-301.72469155,0.00042899,31]
[403880422,1769622636428,-426.78422485,0.000429,3]
[403880460,1769622638491,-831.0,0.00042159,16]
[403880462,1769622638500,-612.45977058,0.000429,3]
[403880464,1769622638512,-6079.571505,0.000429,3]
[403880467,1769622638533,-358.33485164,0.000429,3]
[403880469,1769622638544,-267.0,0.000429,3]
[403880640,1769622640005,-188.5597915,0.00042836,3]
[403880643,1769622640015,-964.28898225,0.00042868,15]
[403880645,1769622640024,-2676.0185829,0.000429,3]
[403880647,1769622640035,-5678.50813704,0.000429,3]
[403880650,1769622640049,-943.49055009,0.000429,3]
[403880652,1769622640060,-447.381,0.000429,3]
[403880659,1769622640122,-1890.52566694,0.000429,3]
[403880990,1769622643479,-8351.5456391,0.00042836,3]
[403880991,1769622643486,-103.24372317,0.00042836,3]
[403880992,1769622643497,-958.39004381,0.00042836,3]
[403880993,1769622643506,-16541.80995619,0.000429,3]
[403881003,1769622645964,-151.0,0.00020549,2]
[403881004,1769622645975,-186.98,0.00033771,2]
[403881005,1769622645985,-197.8067,0.000428,120]
[403881006,1769622645995,-2605.73260816,0.000429,3]
[403881007,1769622646126,-2606.16108519,0.000429,3]
[403881008,1769622646334,-326.0,0.000429,3]
[403881012,1769623779797,187.0,0.00013692,2]
[403881015,1769623832025,-187.0,0.00014975,2]
[403881016,1769623832035,-188.03366071,0.00015724,2]
[403881017,1769623832045,-150.00294146,0.00015727,2]
[403881018,1769623832056,-500.0,0.00016373,2]
[403881019,1769623832066,-500.0,0.00016373,2]
[403881020,1769623832076,-301.88504571,0.00016373,2]
[403881021,1769623832091,-198.11495429,0.00016373,2]
[403881022,1769623832100,-500.0,0.00016373,2]
[403881023,1769623832110,-500.0,0.00016373,2]
[403881024,1769623832121,-500.0,0.00016373,2]
[403881025,1769623832133,-500.0,0.00016373,2]
[403881026,1769623832142,-266.03251014,0.00016373,2]
[403881027,1769623832153,-151.0,0.00016499,2]
[403881028,1769623832163,-151.0,0.00016526,2]
[403881029,1769623832173,-151.0,0.00016577,2]
[403881041,1769623832553,-151.0,0.00016583,2]
[403881042,1769623832570,-500.0,0.00016921,2]
[403881043,1769623832580,-249.23901008,0.00016921,2]
[403881044,1769623832591,-250.76098992,0.00016921,2]
[403881045,1769623832600,-500.0,0.00016921,2]
[403881046,1769623832609,-250.0,0.00017,2]
[403881047,1769623832618,-150.00294146,0.00017081,2]
[403881048,1769623832627,-999.99,0.00017323,2]
[403881049,1769623832636,-150.99,0.00017323,2]
[403881050,1769623832645,-150.99,0.00017323,2]
[403881051,1769623832655,-2149.4556397,0.00017513,5]
[403881052,1769623832666,-834.98957114,0.00017513,5]
[403881053,1769623832677,-284.15203215,0.00017513,5]
[403881054,1769623832688,-2622.47789896,0.00017513,5]
[403881055,1769623832697,-150.00294146,0.00018435,4]
[403881056,1769623832706,-150.00294146,0.0001979,8]
[403881057,1769623832715,-150.00294146,0.00021144,13]
[403881058,1769623832724,-471.25294658,0.00021973,2]
[403881059,1769623832732,-250.28,0.000224,14]
[403881060,1769623832741,-150.00294146,0.00022498,18]
[403881061,1769623832751,-1712.08200043,0.00022772,2]
[403881062,1769623832760,-4743.82767784,0.00022773,2]
[403881063,1769623832771,-500.0,0.00022773,2]
[403881064,1769623832783,-424.87929321,0.00022773,2]
[403881065,1769623832794,-1151.18960832,0.00022773,2]
[403881066,1769623832805,-97527.80018873,0.00022773,2]
[403881067,1769623832818,-82982.30087,0.00022773,2]
[403881068,1769623832829,-254.72572641,0.00022773,2]
[403881069,1769623832892,-784.54454562,0.00022773,2]
[403881070,1769623832903,-622.55672686,0.00022773,2]
[403881071,1769623832915,-60140.46347053,0.00022773,2]
[403881072,1769623832925,-1470.07670614,0.00022773,2]
[403881073,1769623832937,-9652.00722466,0.00022773,2]
[403881074,1769623832948,-287.06431718,0.00022773,2]
[403881075,1769623832959,-1555.22270265,0.00022773,2]
[403881076,1769623832970,-2423.67296601,0.00022773,2]
[403881077,1769623832982,-347.88856276,0.00022773,2]
[403881078,1769623832995,-655.42320207,0.00022773,2]
[403881079,1769623833007,-503.21044542,0.00022773,2]
[403881082,1769623838114,-500.0,0.00022772,2]
[403881083,1769623838125,-500.0,0.00022772,2]
[403881084,1769623838135,-424.41996939,0.00022772,2]
[403881085,1769623838145,-504971.90054358,0.00022773,2]
[403881086,1769623838220,-793.66649967,0.00022773,2]
[403881087,1769623838274,-446.26987052,0.00022773,2]
[403881088,1769623838329,-254.18043806,0.00022773,2]
[403881259,1769623840222,-165.31,0.00022763,2]
[403881260,1769623840232,-665.87815789,0.00022773,2]
[403881266,1769623840276,-421.47737644,0.00022773,2]
[403881283,1769623840433,-603.9459179,0.00022773,2]
[403881300,1769623840592,-151.0,0.00017495,2]
[403881301,1769623840602,-165.35,0.00022773,2]
[403881627,1769623843840,-30950.19676153,0.00022773,2]
[403881629,1769623843850,-227.08,0.00023269,2]
[403881631,1769623843859,-5987.47935454,0.00023752,2]
[403881633,1769623843868,-150.00294146,0.00023852,23]
[403881634,1769623843877,-305.37481683,0.00025064,2]
[403881635,1769623843886,-150.00294146,0.00025207,27]
[403881636,1769623843895,-166.67,0.00025271,2]
[403881637,1769623843904,-1822.56,0.00025321,2]
[403881638,1769623843914,-1712.08200039,0.0002572,2]
[403881639,1769623843923,-5987.47935449,0.00025936,2]
[403881640,1769623843932,-150.00294146,0.00026561,32]
[403881641,1769623843941,-150.00294146,0.00027915,35]
[403881642,1769623843950,-5987.47935449,0.0002812,2]
[403881643,1769623843959,-1712.08200039,0.00028669,2]
[403881644,1769623843968,-166.66,0.00028819,30]
[403881645,1769623843977,-150.00294146,0.00029269,39]
[403881646,1769623843986,-166.66,0.00029426,30]
[403881647,1769623843999,-166.67,0.00029442,2]
[403881648,1769623844010,-200.0,0.00029918,2]
[403881649,1769623844019,-166.66,0.00030032,30]
[403881650,1769623844028,-5987.47935449,0.00030305,2]
[403881651,1769623844037,-150.00294146,0.00030624,43]
[403881652,1769623844046,-166.66,0.00030639,30]
[403881653,1769623844055,-166.66,0.00031246,30]
[403881654,1769623844066,-150.0,0.00031363,2]
[403881656,1769623844075,-1712.08200039,0.00031617,2]
[403881657,1769623844085,-166.66,0.00031852,30]
[403881658,1769623844095,-150.00294146,0.00031978,46]
[403881659,1769623844104,-5987.47935449,0.00032489,2]
[403881660,1769623844113,-150.00294146,0.00033332,50]
[403881661,1769623844123,-1712.08200039,0.00034565,2]
[403881662,1769623844132,-5987.47935449,0.00034673,2]
[403881663,1769623844141,-150.00294167,0.00034686,54]
[403881664,1769623844151,-6572.0,0.00035304,2]
[403881665,1769623844160,-152.0,0.00035539,3]
[403881666,1769623844171,-500.0,0.00035616,7]
[403881667,1769623844180,-500.0,0.00035616,7]
[403881668,1769623844189,-500.0,0.00035616,7]
[403881669,1769623844198,-500.0,0.00035616,7]
[403881670,1769623844208,-500.0,0.00035616,7]
[403881671,1769623844218,-500.0,0.00035616,7]
[403881672,1769623844227,-500.0,0.00035616,7]
[403881673,1769623844237,-500.0,0.00035616,7]
[403881674,1769623844247,-500.0,0.00035616,7]
[403881675,1769623844256,-500.0,0.00035616,7]
[403881676,1769623844266,-500.0,0.00035616,7]
[403881677,1769623844275,-612.24408379,0.00035616,7]
[403881679,1769623844285,-391.27,0.00035616,30]
[403881681,1769623844295,-1214.387,0.00035677,42]
[403881684,1769623844304,-173.03046128,0.00036041,57]
[403881686,1769623844314,-1364.94,0.00036055,120]
[403881688,1769623844324,-1406.74876121,0.00036158,30]
[403881690,1769623844333,-916.0,0.00036213,2]
[403881691,1769623844341,-5987.47935449,0.00036857,2]
[403881694,1769623844350,-173.03046128,0.00037395,61]
[403881695,1769623844359,-1712.08200039,0.00037513,2]
[403881697,1769623844369,-1000.0,0.00037659,2]
[403881699,1769623844377,-1270.0,0.00038254,2]
[403881700,1769623844386,-1361.5,0.00038615,30]
[403881701,1769623844395,-173.03046128,0.00038749,65]
[403881702,1769623844404,-5987.47935449,0.00039042,2]
[403881703,1769623844414,-880.0545839,0.00039166,2]
[403881704,1769623844423,-1550.57850947,0.00039166,2]
[403881705,1769623844432,-1361.5,0.00039179,120]
[403881706,1769623844441,-1361.5,0.00039742,120]
[403881707,1769623844450,-173.03046128,0.00040103,68]
[403881708,1769623844458,-1361.5,0.00040306,120]
[403881709,1769623844467,-391.27,0.00040451,30]
[403881710,1769623844477,-1361.5,0.0004087,120]
[403881711,1769623844486,-798.0,0.00041096,120]
[403881712,1769623844495,-152.0,0.00041104,4]
[403881713,1769623844505,-5987.47935449,0.00041226,15]
[403881714,1769623844514,-1361.5,0.00041434,120]
[403881715,1769623844523,-173.03046128,0.00041458,72]
[403881716,1769623844532,-798.0,0.00041644,120]
[403881717,1769623844541,-5000.0,0.00041663,120]
[403881718,1769623844550,-3007.84483958,0.000418,30]
[403881719,1769623844560,-150.87,0.00041863,30]
[403881720,1769623844569,-1231.6,0.00041863,30]
[403881721,1769623844578,-500.0,0.00041905,60]
[403881722,1769623844588,-798.0,0.00042192,120]
[403881723,1769623844597,-740.06435803,0.00042195,7]
[403881724,1769623844606,-1650.0,0.00042213,30]
[403881725,1769623844615,-1000.0,0.00042297,30]
[403881726,1769623844624,-1000.0,0.00042366,2]
[403881727,1769623844633,-13652.83757662,0.000425,30]
[403881728,1769623844643,-1000.0,0.00042571,30]
[403881729,1769623844653,-1650.0,0.00042649,30]
[403881730,1769623844662,-559.17,0.00042685,30]
[403881731,1769623844671,-231.58,0.00042685,30]
[403881732,1769623844680,-559.17,0.00042685,30]
[403881733,1769623844689,-172.23,0.00042685,30]
[403881734,1769623844698,-191.77,0.00042685,30]
[403881735,1769623844707,-559.17,0.00042685,30]
[403881736,1769623844716,-180.06,0.00042685,30]
[403881737,1769623844725,-559.17,0.00042685,30]
[403881738,1769623844734,-180.06,0.00042685,30]
[403881739,1769623844743,-180.06,0.00042685,30]
[403881740,1769623844753,-559.17,0.00042685,30]
[403881741,1769623844762,-323.47,0.00042685,30]
[403881742,1769623844771,-32565.1340491,0.00042693,2]
[403881743,1769623844781,-625.11489639,0.00042747,120]
[403881744,1769623844790,-414.19650175,0.0004275,30]
[403881745,1769623844799,-10871.0,0.000428,7]
[403881746,1769623844808,-1000.0,0.000428,2]
[403881747,1769623844817,-274.84271298,0.000428,19]
[403881748,1769623844826,-173.03046128,0.00042812,87]
[403881749,1769623844835,-1000.0,0.00042845,30]
[403881750,1769623844948,-500.0,0.00042847,2]
[403881751,1769623845177,-190.73343952,0.0004288,120]
[403881752,1769623845187,-151.0,0.00042896,120]
[403881753,1769623845196,-151.0,0.00042897,120]
[403881754,1769623845205,-500.0,0.00042899,120]
[403881755,1769623845215,-209.40437684,0.00042899,3]
[403881756,1769623845224,-217.15233878,0.00042899,3]
[403881757,1769623845234,-225.18697532,0.00042899,3]
[403881758,1769623845243,-578.20924308,0.00042899,3]
[403881759,1769623845252,-233.51889341,0.00042899,3]
[403881760,1769623845262,-242.15909246,0.00042899,3]
[403881761,1769623845271,-251.11897888,0.00042899,3]
[403881762,1769623845280,-260.4103811,0.00042899,3]
[403881763,1769623845290,-270.0455652,0.00042899,3]
[403881764,1769623845299,-280.03725112,0.00042899,3]
[403881765,1769623845307,-290.39862941,0.00042899,3]
[403881766,1769623845316,-301.1433787,0.00042899,3]
[403881767,1769623845325,-500.0,0.00042899,3]
[403881768,1769623845335,-646.63782478,0.00042899,3]
[403881769,1769623845344,-500.0,0.00042899,3]
[403881770,1769623845354,-500.0,0.00042899,3]
[403881771,1769623845364,-500.0,0.00042899,3]
[403881772,1769623845373,-500.0,0.00042899,3]
[403881773,1769623845382,-500.0,0.00042899,3]
[403881774,1769623845393,-500.0,0.00042899,3]
[403881775,1769623845403,-3000.0,0.00042899,3]
[403881776,1769623845413,-3000.0,0.00042899,3]
[403881777,1769623845422,-3000.0,0.00042899,3]
[403881778,1769623845431,-204.0925976,0.00042899,3]
[403881779,1769623845442,-500.0,0.00042899,3]
[403881780,1769623845451,-854.2589148,0.00042899,3]
[403881781,1769623845461,-885.86649465,0.00042899,3]
[403881782,1769623845470,-2000.0,0.00042899,3]
[403881783,1769623845479,-2000.0,0.00042899,3]
[403881784,1769623845489,-2000.0,0.00042899,3]
[403881785,1769623845498,-2000.0,0.00042899,3]
[403881786,1769623845507,-2000.0,0.00042899,3]
[403881787,1769623845516,-2000.0,0.00042899,3]
[403881788,1769623845526,-2000.0,0.00042899,3]
[403881789,1769623845535,-2000.0,0.00042899,3]
[403881790,1769623845545,-2000.0,0.00042899,3]
[403881791,1769623845554,-2000.0,0.00042899,3]
[403881792,1769623845562,-2000.0,0.00042899,3]
[403881793,1769623845573,-500.0,0.00042899,3]
[403881794,1769623845582,-500.0,0.00042899,3]
[403881795,1769623845591,-500.0,0.00042899,3]
[403881796,1769623845600,-500.0,0.00042899,3]
[403881797,1769623845610,-500.0,0.00042899,3]
[403881798,1769623845619,-594.20635627,0.00042899,3]
[403881799,1769623845628,-151.0,0.00042899,3]
[403881800,1769623845638,-151.0,0.00042899,3]
[403881801,1769623845647,-151.0,0.00042899,3]
[403881802,1769623845657,-359.76179104,0.00042899,3]
[403881803,1769623845666,-151.0,0.00042899,3]
[403881804,1769623845676,-373.07297731,0.00042899,3]
[403881805,1769623845685,-151.0,0.00042899,3]
[403881806,1769623845695,-386.87667747,0.00042899,3]
[403881807,1769623845704,-151.0,0.00042899,3]
[403881808,1769623845713,-328.15655843,0.00042899,3]
[403881809,1769623845723,-151.0,0.00042899,3]
[403881810,1769623845732,-151.0,0.00042899,3]
[403881811,1769623845742,-151.0,0.00042899,3]
[403881812,1769623845751,-151.0,0.00042899,3]
[403881813,1769623845760,-275.16576133,0.00042899,3]
[403881814,1769623845769,-374.71473492,0.000429,60]
[403881815,1769623845778,-496763.37367947,0.000429,3]
[403881829,1769623846478,-1712.08200039,0.00040462,28]
[403881830,1769623846488,-873.88951653,0.000429,3]
[403881831,1769623846499,-921.5606106,0.000429,3]
[403881832,1769623846510,-3488.50384544,0.000429,3]
[403881841,1769623916187,202.90468688,0.00013786,2]
[403881842,1769623988299,4902.281469,7.945e-05,2]
[403881858,1769625032212,-462.2217,0.00014875,2]
[403881859,1769625032222,-151.0,0.00016207,2]
[403881860,1769625032232,-151.0,0.00016212,2]
[403881861,1769625032242,-151.0,0.00016213,2]
[403881862,1769625032251,-250.0,0.00016363,2]
[403881863,1769625032260,-195.0,0.00016363,2]
[403881864,1769625032269,-500.0,0.00016373,2]
[403881865,1769625032278,-500.0,0.00016921,2]
[403881866,1769625032287,-300.0,0.000175,6]
[403881867,1769625032297,-600.0,0.000176,6]
[403881868,1769625032307,-745.96436582,0.000177,6]
[403881869,1769625032321,-154.03563418,0.000177,6]
[403881870,1769625032330,-1200.0,0.000178,6]
[403881871,1769625032340,-1200.0,0.00017898,2]
[403881872,1769625032351,-1200.0,0.00017899,2]
[403881873,1769625032360,-277.49964977,0.00017899,2]
[403881874,1769625032371,-22.50035023,0.00017899,2]
[403881875,1769625032381,-544.49470959,0.000179,6]
[403881876,1769625032394,-955.50529041,0.000179,6]
[403881877,1769625032403,-502.37022563,0.000179,2]
[403881878,1769625032413,-2643.00090954,0.000179,2]
[403881879,1769625032422,-961.94949538,0.000179,2]
[403881881,1769625032432,-190.19209598,0.000179,3]
[403881883,1769625032441,-1247.94205495,0.000179,2]
[403881885,1769625032450,-168.0,0.00017974,2]
[403881887,1769625032459,-165.31,0.0001799,2]
[403881889,1769625032469,-151.0,0.00017997,2]
[403881891,1769625032478,-300.0,0.00017999,2]
[403881892,1769625032487,-150.0,0.00017999,2]
[403881894,1769625032497,-150.0,0.00017999,2]
[403881896,1769625032506,-150.0,0.00017999,2]
[403881899,1769625032516,-211.20728409,0.00017999,2]
[403881902,1769625032525,-209.97830465,0.00017999,2]
[403881905,1769625032534,-500.0,0.00017999,2]
[403881908,1769625032543,-3194.09439298,0.00018,2]
[403881911,1769625032554,-7241.24376319,0.00018,2]
[403881938,1769625038272,-14214.000003,0.00018,2]
[403881939,1769625038379,-1605.0,0.00018,2]
[403881940,1769625038391,-1274.14311857,0.00018,2]
[403882117,1769625040430,-2621.20919986,0.00018,2]
[403882119,1769625040442,-372.80333372,0.00018,2]
[403882121,1769625040453,-3561.99998,0.00018,2]
[403882123,1769625040464,-1267267.12434662,0.00018,2]
[403882126,1769625040476,-1828.871493,0.00018,2]
[403882128,1769625040488,-2185.20892599,0.00018,2]
[403882134,1769625040538,-1051.3153,0.00018,2]
[403882137,1769625040549,-315.041611,0.00018,2]
[403882139,1769625040560,-335.38,0.00018,2]
[403882156,1769625040703,-327.84001672,0.00018,2]
[403882174,1769625040864,-566.00414625,0.00018,2]
[403882452,1769625764659,-151.0,0.0001636,2]
[403882453,1769625764682,-1200.0,0.00016372,2]
[403882454,1769625764703,-4.0,0.00016373,2]
[403882470,1769626231379,-151.0,0.00016181,2]
[403882472,1769626231388,-151.0,0.00016227,2]
[403882474,1769626231398,-448.16559277,0.00016261,2]
[403882475,1769626231407,-150.00346379,0.00016372,2]
[403882476,1769626231417,-1200.0,0.00016372,2]
[403882477,1769626231427,-300.0,0.00016372,2]
[403882478,1769626231435,-500.0,0.00016373,2]
[403882479,1769626231445,-500.0,0.00016373,2]
[403882480,1769626231454,-500.0,0.00016373,2]
[403882481,1769626231463,-500.0,0.00016373,2]
[403882482,1769626231472,-500.0,0.00016373,2]
[403882483,1769626231481,-168.02178989,0.00016373,2]
[403882484,1769626231490,-500.0,0.00016373,2]
[403882485,1769626231499,-500.0,0.00016373,2]
[403882486,1769626231508,-500.0,0.00016373,2]
[403882487,1769626231778,-500.0,0.00016373,2]
[403882488,1769626231870,-500.0,0.00016373,2]
[403882489,1769626231879,-459.78429108,0.00016373,2]
[403882490,1769626231902,-40.21570892,0.00016373,2]
[403882491,1769626231911,-500.0,0.00016373,2]
[403882492,1769626231920,-500.0,0.00016373,2]
[403882493,1769626231929,-500.0,0.00016373,2]
[403882494,1769626231939,-166.37555408,0.00016373,2]
[403882495,1769626231947,-501.22866478,0.00016373,2]
[403882496,1769626231957,-500.0,0.00016373,2]
[403882497,1769626231966,-500.0,0.00016373,2]
[403882498,1769626231975,-214.37,0.00016373,2]
[403882499,1769626231984,-214.37,0.00016647,2]
[403882500,1769626231993,-6835.0,0.0001678,2]
[403882501,1769626232002,-6875.65,0.00016893,2]
[403882502,1769626232011,-1000.0,0.00016897,2]
[403882503,1769626232020,-1000.0,0.00016921,2]
[403882504,1769626232030,-542.83258534,0.00016921,2]
[403882505,1769626232039,-544.47711737,0.00016921,2]
[403882506,1769626232048,-1064.98374493,0.00016921,2]
[403882507,1769626232057,-1000.0,0.00016921,2]
[403882508,1769626232066,-1000.0,0.00016921,2]
[403882509,1769626232075,-1000.0,0.00016921,2]
[403882510,1769626232085,-1000.0,0.00016921,2]
[403882511,1769626232094,-500.0,0.00016921,2]
[403882512,1769626232103,-1000.0,0.00016921,2]
[403882513,1769626232112,-1000.0,0.00016921,2]
[403882514,1769626232121,-500.0,0.00016921,2]
[403882515,1769626232131,-500.0,0.00016921,2]
[403882516,1769626232140,-1000.0,0.00016921,2]
[403882517,1769626232149,-1000.0,0.00016921,2]
[403882518,1769626232159,-1000.0,0.00016921,2]
[403882519,1769626232168,-214.37,0.00016921,2]
[403882520,1769626232177,-1500.0,0.00016967,2]
[403882521,1769626232186,-348.28,0.00016987,2]
[403882522,1769626232196,-250.0,0.00017,2]
[403882523,1769626232205,-214.37,0.00017195,2]
[403882524,1769626232214,-1000.0,0.00017372,2]
[403882525,1769626232223,-214.38,0.00017468,2]
[403882526,1769626232231,-201.98374493,0.00017468,2]
[403882527,1769626232241,-35644.19,0.00017468,2]
[403882528,1769626232250,-4999.99,0.00017468,2]
[403882529,1769626232259,-150.99,0.00017468,2]
[403882530,1769626232267,-9999.99,0.00017468,2]
[403882531,1769626232276,-299.99,0.00017468,4]
[403882532,1769626232285,-7752.81,0.00017468,2]
[403882533,1769626232294,-1500.0,0.00017468,2]
[403882534,1769626232304,-500.0,0.00017468,2]
[403882535,1769626232313,-1500.0,0.00017468,2]
[403882536,1769626232323,-1500.0,0.00017468,2]
[403882537,1769626232332,-1500.0,0.00017468,2]
[403882538,1769626232341,-916.07246383,0.00017468,2]
[403882539,1769626232351,-1500.0,0.00017468,2]
[403882540,1769626232359,-1500.0,0.00017468,2]
[403882541,1769626232369,-150.00346379,0.00017704,2]
[403882542,1769626232378,-300.0,0.00017764,2]
[403882543,1769626232387,-250.0,0.00017768,2]
[403882544,1769626232396,-8551.66092504,0.00017798,2]
[403882545,1769626232405,-1076.99786911,0.00017799,2]
[403882546,1769626232414,-33266.4327,0.000178,2]
[403882547,1769626232423,-1000.0,0.000178,2]
[403882548,1769626232433,-1509.62519767,0.000178,2]
[403882549,1769626232442,-8551.66092503,0.00017809,2]
[403882550,1769626232451,-8551.66092503,0.00017821,2]
[403882551,1769626232461,-8551.66092503,0.00017832,2]
[403882552,1769626232470,-8186.37514139,0.00017843,2]
[403882553,1769626232486,-365.28578364,0.00017843,2]
[403882554,1769626232495,-8551.66092503,0.00017855,2]
[403882555,1769626232504,-420.0,0.00017893,2]
[403882556,1769626232513,-151.0,0.00017895,2]
[403882557,1769626232523,-151.0,0.00017897,2]
[403882558,1769626232532,-547.85515059,0.00017898,2]
[403882559,1769626232542,-593.20975097,0.00017898,2]
[403882561,1769626237534,-2320.18029496,0.00017866,2]
[403882562,1769626237545,-1238.25803226,0.00017866,2]
[403882620,1769626238236,-307.17638214,0.00017866,2]